bitfinex-derivatives/quotes_SOLF0:USTF0_20250207
["timestamp","ask_amount","ask_price","bid_price","bid_amount"]
[1738916079424,17.38472259,193.04,192.95,4.8159]
[1738916080415,5.1796,193.02,192.95,9.997]
[1738916080720,0.03537949,193.01,192.98,0.03916153]
[1738916082725,5.18,193.0,192.98,0.03916153]
[1738916085122,0.03537949,193.01,192.98,0.03916153]
[1738916090219,0.03537949,193.01,192.99,5.1803]
[1738916090624,0.03537949,193.01,192.98,0.03916153]
[1738916090826,0.03537949,193.01,193.0,5.18]
[1738916091127,21.48567848,193.09,192.98,0.03916153]
[1738916091327,17.38472259,193.05,192.98,0.03916153]
[1738916092223,0.03455202,193.03,192.98,0.03916153]
[1738916092627,5.1795,193.02,192.98,0.03916153]
[1738916100538,5.1798,193.01,192.98,0.03916153]
[1738916101037,0.03455202,193.03,192.98,0.03916153]
[1738916101239,5.1795,193.02,192.98,0.03916153]
[1738916101833,0.03455202,193.03,192.98,0.03916153]
[1738916102037,5.21375202,193.03,192.98,5.21956153]
[1738916102535,5.1795,193.02,192.98,0.03916153]
[1738916104229,5.1802,193.0,192.98,0.03916153]
[1738916106245,11.13461682,193.01,192.98,0.03916153]
[1738916107048,16.31441682,193.01,192.98,0.03916153]
[1738916107350,11.13461682,193.01,192.98,0.03916153]
[1738916107644,11.16916884,193.03,192.98,0.03916153]
[1738916107945,11.13461682,193.01,192.98,0.03916153]
[1738916111048,0.03455202,193.03,192.98,0.03916153]
[1738916111250,0.03455202,193.03,193.01,11.13461682]
[1738916111448,0.03455202,193.03,193.02,5.1791]
[1738916111647,0.03455202,193.03,193.01,11.13461682]
[1738916112248,0.03455202,193.03,193.01,16.31391682]
[1738916112652,0.03455202,193.03,193.01,11.13461682]
[1738916112852,21.48567848,193.06,193.01,11.13461682]
[1738916113041,11.13461682,193.1,193.03,11.13461682]
[1738916113751,11.13461682,193.12,193.03,11.13461682]
[1738916114048,0.0391723,193.08,193.05,0.03942894]
[1738916114243,0.0391723,193.08,193.05,5.21742894]
[1738916114445,0.0391723,193.08,193.05,0.03942894]
[1738916114847,0.0391723,193.08,193.07,5.1777]
[1738916115551,0.0391723,193.08,193.07,16.31231682]
[1738916115745,11.13461682,193.16,193.11,5.1765]
[1738916116144,21.48567848,193.17,193.11,11.13461682]
[1738916116348,21.48567848,193.17,193.14,5.1758]
[1738916116948,21.52004275,193.17,193.14,5.21331628]
[1738916117551,11.13461682,193.16,193.14,0.03751628]
[1738916118653,0.03436427,193.17,193.14,0.03751628]
[1738916126861,5.1759,193.15,193.14,0.03751628]
[1738916127061,22.14124056,193.16,193.05,3.1601]
[1738916127362,5.1769,193.12,193.03,17.37334056]
[1738916128160,0.03776978,193.1,193.06,0.03943673]
[1738916129158,0.03776978,193.1,193.06,5.21763673]
[1738916130666,0.03776978,193.1,193.07,5.178]
[1738916130963,0.03776978,193.1,193.06,17.41277729]
[1738916131164,0.03776978,193.1,193.09,5.1775]
[1738916135062,17.37334056,193.2,193.09,17.37334056]
[1738916135257,17.37334056,193.23,193.12,5.1764]
[1738916135565,17.37334056,193.23,193.09,17.37334056]
[1738916136259,0.03934423,193.18,193.14,0.03361655]
[1738916138769,5.1759,193.15,193.14,0.03361655]
[1738916143072,0.03934423,193.18,193.14,0.03361655]
[1738916144169,17.37334056,193.17,193.06,17.37334056]
[1738916144362,17.37334056,193.14,193.03,17.37334056]
[1738916144568,11.12626998,193.1,193.03,11.12626998]
[1738916145475,0.03344123,193.08,193.05,0.03355654]
[1738916145870,11.15971121,193.08,193.05,0.03355654]
[1738916146270,11.12626998,193.06,193.05,0.03355654]
[1738916146474,11.12626998,193.06,192.97,11.12626998]
[1738916146670,17.3962348,193.07,192.94,17.3962348]
[1738916147569,3.76,193.11,192.93,1.6337]
[1738916147570,17.3962348,193.04,192.93,1.6337]
[1738916147769,0.03597833,193.02,192.99,0.03635034]
[1738916150372,5.21537833,193.02,192.99,0.03635034]
[1738916154375,0.03597833,193.02,192.99,0.03635034]
[1738916154970,5.1797,193.01,192.99,0.03635034]
[1738916155276,0.03597833,193.02,192.99,0.03635034]
[1738916156775,5.21547833,193.02,192.99,0.03635034]
[1738916158388,5.1797,193.01,192.99,0.03635034]
[1738916159284,5.1799,193.0,192.99,0.03635034]
[1738916159880,5.1813,192.95,192.9,193.0]
[1738916160077,17.3962348,192.98,192.87,17.3962348]
[1738916160682,5.1818,192.94,192.87,22.5796348]
[1738916161181,0.0391378,192.92,192.89,0.0358537]
[1738916163096,0.0391378,192.92,192.9,5.1826]
[1738916163387,0.0391378,192.92,192.89,0.0358537]
[1738916166688,0.0391378,192.92,192.89,11.17875249]
[1738916168286,0.0391378,192.92,192.91,11.14289879]
[1738916169087,0.0391378,192.92,192.91,16.32519879]
[1738916169283,3.252,193.02,192.96,11.14289879]
[1738916169888,8.4315,193.02,192.96,16.32379879]
[1738916170295,0.03516509,193.01,192.97,0.03374709]
[1738916171897,17.39718324,193.0,192.97,0.03374709]
[1738916172991,5.1804,192.98,192.97,0.03374709]
[1738916175397,17.39718324,193.0,192.97,0.03374709]
[1738916175600,5.1801,193.0,192.97,0.03374709]
[1738916175800,0.03516509,193.01,192.97,0.03374709]
[1738916176798,5.21496509,193.01,192.97,0.03374709]
[1738916177101,0.03516509,193.01,192.97,0.03374709]
[1738916178395,0.03516509,193.01,192.97,5.21434709]
[1738916178903,0.03516509,193.01,192.97,0.03374709]
[1738916181500,0.03516509,193.01,193.0,5.1799]
[1738916181805,0.03516509,193.01,192.97,0.03374709]
[1738916181806,21.48567848,193.1,192.99,17.39718324]
[1738916182005,21.48567848,193.1,193.02,17.39718324]
[1738916183007,0.03510058,193.08,193.04,0.03772317]
[1738916185101,5.1786,193.05,193.04,0.03772317]
[1738916185802,0.03510058,193.08,193.04,0.03772317]
[1738916186011,5.1783,193.06,193.04,0.03772317]
[1738916186506,5.1786,193.05,193.04,0.03772317]
[1738916190015,22.57548324,193.06,193.04,0.03772317]
[1738916190216,5.1783,193.06,193.04,0.03772317]
[1738916190722,4.8293,193.07,193.04,0.03772317]
[1738916190919,5.21310058,193.08,193.04,0.03772317]
[1738916191622,5.1781,193.07,193.04,0.03772317]
[1738916192622,0.03510058,193.08,193.04,0.03772317]
[1738916194821,5.21290058,193.08,193.04,0.03772317]
[1738916195826,0.03510058,193.08,193.04,0.03772317]
[1738916200427,0.03510058,193.08,193.06,5.1781]
[1738916200628,0.03510058,193.08,193.04,0.03772317]
[1738916201730,0.03510058,193.08,193.05,5.1786]
[1738916201933,0.03510058,193.08,193.04,0.03772317]
[1738916202434,5.1786,193.05,193.04,0.03772317]
[1738916203927,17.39718324,193.06,192.95,193.0]
[1738916204232,3.1915,193.05,192.93,17.39718324]
[1738916204435,17.39718324,193.03,192.91,4.8843]
[1738916205235,0.03649643,192.99,192.95,0.03782162]
[1738916206734,0.03649643,192.99,192.95,5.21882162]
[1738916208237,0.03649643,192.99,192.95,0.03782162]
[1738916208432,0.03649643,192.99,192.96,5.1809]
[1738916209327,0.03649643,192.99,192.98,5.1805]
[1738916212235,0.03649643,192.99,192.96,22.57798324]
[1738916212437,0.03649643,192.99,192.96,17.39718324]
[1738916213942,0.03649643,192.99,192.96,22.57818324]
[1738916215041,0.03649643,192.99,192.95,0.03782162]
[1738916216142,5.1805,192.98,192.95,0.03782162]
[1738916216343,0.03649643,192.99,192.95,0.03782162]
[1738916219939,0.03649643,192.99,192.95,5.21902162]
[1738916220538,0.03649643,192.99,192.95,0.03782162]
[1738916221139,5.181,192.96,192.95,0.03782162]
[1738916225151,17.39718324,192.97,192.84,17.39718324]
[1738916226152,5.1818,192.94,192.84,22.58138324]
[1738916226350,0.03477348,192.92,192.89,0.03610089]
[1738916227154,5.21697348,192.92,192.89,0.03610089]
[1738916227454,0.03477348,192.92,192.89,0.03610089]
[1738916227654,5.182,192.91,192.89,0.03610089]
[1738916228455,0.03477348,192.92,192.89,0.03610089]
[1738916230862,0.03477348,192.92,192.9,5.1822]
[1738916233359,0.03477348,192.92,192.91,5.182]
[1738916233757,38.88286172,193.06,192.9,17.39718324]
[1738916233962,43.62946172,193.06,192.93,17.39718324]
[1738916234163,5.1784,193.05,192.96,17.39718324]
[1738916234366,26.23227848,193.06,192.96,17.39718324]
[1738916234666,21.48567848,193.06,193.0,5.1795]
[1738916234866,21.48567848,193.06,192.96,17.39718324]
[1738916235164,0.03803426,193.03,193.02,5.179]
[1738916235362,0.03803426,193.03,192.99,17.43287678]
[1738916236763,0.03803426,193.03,193.0,3.2661]
[1738916236963,0.03803426,193.03,193.02,17.39718324]
[1738916237863,0.03803426,193.03,193.02,22.57618324]
[1738916238167,17.39718324,193.15,193.02,17.39718324]
[1738916238564,5.176,193.14,193.06,5.1779]
[1738916239363,0.03744912,193.12,193.08,0.03280874]
[1738916240867,0.03744912,193.12,193.08,17.42999198]
[1738916241570,0.03744912,193.12,193.08,22.60709198]
[1738916242267,0.03744912,193.12,193.09,5.1771]
[1738916242462,0.03744912,193.12,193.08,17.42999198]
[1738916242767,0.03744912,193.12,193.1,5.1768]
[1738916242967,0.03744912,193.12,193.08,17.42999198]
[1738916244568,0.03744912,193.12,193.08,22.60729198]
[1738916244960,0.03744912,193.12,193.08,17.42999198]
[1738916245168,0.03744912,193.12,193.09,5.1771]
[1738916246161,0.03744912,193.12,193.08,17.42999198]
[1738916246474,0.03744912,193.12,193.11,22.57378324]
[1738916246771,5.1742,193.2,193.13,5.1758]
[1738916247366,5.1739,193.21,193.14,5.1758]
[1738916247568,5.1739,193.21,193.11,17.39718324]
[1738916247867,4.719,193.22,193.11,17.39718324]
[1738916247868,0.03914589,193.19,193.16,0.0387711]
[1738916253175,5.175,193.17,193.16,0.0387711]
[1738916253870,5.175,193.17,193.16,3.57e-05]
[1738916258366,5.21384589,193.19,193.16,3.57e-05]
[1738916259380,0.03914589,193.19,193.16,3.57e-05]
[1738916260971,0.03914589,193.19,193.17,17.39718324]
[1738916261170,4.8142,193.29,193.17,17.39718324]
[1738916261376,5.1712,193.31,193.24,5.1731]
[1738916261773,21.48567848,193.33,193.23,17.39718324]
[1738916262371,0.03698015,193.3,193.26,0.03740967]
[1738916265878,0.03698015,193.3,193.27,5.1722]
[1738916266780,0.03698015,193.3,193.26,0.03740967]
[1738916269673,0.03698015,193.3,193.26,5.20990967]
[1738916270180,0.03698015,193.3,193.26,0.03740967]
[1738916271478,5.20848015,193.3,193.26,0.03740967]
[1738916272677,0.03698015,193.3,193.26,0.03740967]
[1738916276075,17.43416339,193.3,193.26,0.03740967]
[1738916276276,21.19416339,193.3,193.26,0.03740967]
[1738916276483,5.1723,193.27,193.26,0.03740967]
[1738916276683,3.79698015,193.3,193.26,0.03740967]
[1738916277778,0.03698015,193.3,193.26,0.03740967]
[1738916278480,0.03698015,193.3,193.26,5.20990967]
[1738916278682,0.03698015,193.3,193.26,0.03740967]
[1738916278883,0.03698015,193.3,193.28,17.39718324]
[1738916279091,0.03698015,193.3,193.29,5.1717]
[1738916279985,0.03698015,193.3,193.28,17.39718324]
[1738916280688,0.03698015,193.3,193.26,5.20970967]
[1738916280882,0.03698015,193.3,193.26,0.03740967]
[1738916282790,0.03698015,193.3,193.26,5.20990967]
[1738916283491,0.03698015,193.3,193.27,5.1722]
[1738916285791,0.03698015,193.3,193.26,0.03740967]
[1738916286189,5.20868015,193.3,193.26,0.03740967]
[1738916286585,0.03698015,193.3,193.26,0.03740967]
[1738916286795,5.1723,193.27,193.26,0.03740967]
[1738916288594,5.1733,193.24,193.16,17.39718324]
[1738916289586,5.1726,193.26,193.19,5.1744]
[1738916289793,0.03470825,193.22,193.19,22.57158324]
[1738916291495,0.03470825,193.22,193.19,17.39718324]
[1738916291692,0.03470825,193.22,193.18,0.03626347]
[1738916293889,5.1744,193.19,193.18,0.03626347]
[1738916294091,0.03470825,193.22,193.18,0.03626347]
[1738916294297,5.20840825,193.22,193.18,0.03626347]
[1738916294498,0.03470825,193.22,193.18,0.03626347]
[1738916294697,0.03470825,193.22,193.19,17.39718324]
[1738916298002,0.03470825,193.22,193.19,22.57158324]
[1738916298298,0.03470825,193.22,193.19,17.39718324]
[1738916298698,0.03470825,193.22,193.18,5.21086347]
[1738916299096,0.03470825,193.22,193.18,0.03626347]
[1738916300095,5.20840825,193.22,193.18,0.03626347]
[1738916301801,5.1743,193.2,193.18,0.03626347]
[1738916301998,0.03470825,193.22,193.18,0.03626347]
[1738916302399,5.1744,193.19,193.18,0.03626347]
[1738916302904,4.59980825,193.22,193.18,0.03626347]
[1738916303104,3.09380825,193.22,193.18,0.03626347]
[1738916303304,0.03470825,193.22,193.18,0.03626347]
[1738916305999,5.1744,193.19,193.18,0.03626347]
[1738916306306,17.39718324,193.2,193.09,22.19118324]
[1738916306500,17.39718324,193.2,193.09,4.794]
[1738916307005,5.1753,193.16,193.09,4.794]
[1738916307609,0.03633174,193.14,193.11,0.03427431]
[1738916308013,17.43351498,193.14,193.11,0.03427431]
[1738916308906,5.1763,193.12,193.11,0.03427431]
[1738916309115,17.43351498,193.14,193.02,4.9776]
[1738916309316,17.39718324,193.11,193.0,17.39718324]
[1738916309814,3.1148,193.1,192.97,17.39718324]
[1738916310006,5.1777,193.07,192.99,5.1798]
[1738916310207,3.1148,193.1,193.0,17.39718324]
[1738916310510,0.03421542,193.05,193.01,0.03694559]
[1738916311011,0.03421542,193.05,193.03,5.1786]
[1738916311711,0.03421542,193.05,193.01,0.03694559]
[1738916313310,5.21251542,193.05,193.01,0.03694559]
[1738916313620,0.03421542,193.05,193.01,0.03694559]
[1738916315011,5.1787,193.03,193.01,0.03694559]
[1738916315215,0.03421542,193.05,193.01,0.03694559]
[1738916317616,0.03421542,193.05,193.01,5.21604559]
[1738916318415,0.03421542,193.05,193.04,5.1784]
[1738916318812,5.1763,193.12,193.03,17.39718324]
[1738916319013,5.1763,193.12,193.05,5.1781]
[1738916319216,3.2492,193.15,193.03,17.39718324]
[1738916320114,0.0341616,193.11,193.07,0.03900249]
[1738916321417,0.0341616,193.11,193.09,5.1771]
[1738916321619,0.0341616,193.11,193.07,0.03900249]
[1738916322212,5.1749,193.18,193.07,0.03900249]
[1738916322718,20.44808324,193.2,193.11,5.1766]
[1738916322919,8.2253,193.2,193.11,5.1766]
[1738916323117,3.0509,193.2,193.11,5.1766]
[1738916323423,0.03339781,193.17,193.14,0.03754934]
[1738916325015,0.03339781,193.17,193.14,5.21324934]
[1738916328322,0.03339781,193.17,193.14,0.03754934]
[1738916332416,17.43058105,193.17,193.14,0.03754934]
[1738916332830,5.1752,193.16,193.14,0.03754934]
[1738916334127,5.1755,193.15,193.14,0.03754934]
[1738916334323,5.1755,193.15,193.14,0.00333392]
[1738916334623,3.265,193.16,193.02,4.66]
[1738916334822,17.39718324,193.12,193.02,4.66]
[1738916335017,5.1775,193.08,193.02,4.66]
[1738916335625,0.03547,193.07,193.03,0.03735096]
[1738916336223,5.21327,193.07,193.03,0.03735096]
[1738916336629,0.03547,193.07,193.03,0.03735096]
[1738916339127,0.03547,193.07,193.03,17.4345342]
[1738916340021,0.03547,193.07,193.05,5.1782]
[1738916340226,0.03547,193.07,193.03,17.4345342]
[1738916340822,0.03547,193.07,193.04,5.1784]
[1738916341025,0.03547,193.07,193.03,17.4345342]
[1738916341520,0.03547,193.07,193.06,5.1779]
[1738916341926,3.265,193.16,193.06,17.39718324]
[1738916342122,5.1755,193.15,193.08,5.1773]
[1738916343223,0.03533275,193.13,193.1,0.035172]
[1738916345020,0.03533275,193.13,193.1,5.211972]
[1738916345325,0.03533275,193.13,193.1,0.035172]
[1738916346025,0.03533275,193.13,193.11,5.1763]
[1738916346230,0.03533275,193.13,193.1,0.035172]
[1738916346928,0.03533275,193.13,193.12,5.1763]
[1738916348727,1.5081,193.23,193.12,17.39718324]
[1738916348930,1.5081,193.23,193.14,5.1757]
[1738916349732,5.1744,193.19,193.12,22.57348324]
[1738916349922,5.1744,193.19,193.17,0.03315543]
[1738916353239,17.39718324,193.18,193.05,17.39718324]
[1738916353933,17.39718324,193.21,193.08,17.39718324]
[1738916354332,5.1747,193.19,193.11,5.1766]
[1738916354536,0.03665247,193.16,193.13,0.03466886]
[1738916356329,5.1758,193.14,193.13,0.03466886]
[1738916356535,0.03665247,193.16,193.13,0.03466886]
[1738916358234,5.1758,193.15,193.13,0.03466886]
[1738916358531,0.03665247,193.16,193.13,0.03466886]
[1738916359236,5.1758,193.14,193.13,0.03466886]
[1738916361535,5.1767,193.11,193.01,17.39718324]
[1738916361837,5.3896,193.15,193.07,5.1775]
[1738916362433,10.5651,193.15,193.07,5.1775]
[1738916362628,0.0342314,193.13,193.09,0.03427121]
[1738916364035,0.0342314,193.13,193.1,17.39718324]
[1738916364439,0.0342314,193.13,193.12,5.1763]
[1738916364731,21.48567848,193.2,193.1,17.39718324]
[1738916364937,21.48567848,193.21,193.13,17.39718324]
[1738916365935,0.03755364,193.19,193.15,0.03816056]
[1738916369438,0.03755364,193.19,193.15,5.21366056]
[1738916369634,0.03755364,193.19,193.15,0.03816056]
[1738916372146,0.03755364,193.19,193.16,5.1751]
[1738916375655,161.96032824,193.33,193.16,17.39718324]
[1738916375856,57.32805517,193.3,193.2,17.39718324]
[1738916376050,5.1722,193.28,193.22,5.1735]
[1738916376252,74.72523841,193.3,193.17,17.39718324]
[1738916376649,5.173,193.25,193.21,0.0383324]
[1738916376859,5.2123133,193.25,193.21,0.0383324]
[1738916378450,0.0393133,193.25,193.21,0.0383324]
[1738916379457,5.1731,193.24,193.21,0.0383324]
[1738916379959,0.0393133,193.25,193.21,0.0383324]
[1738916380659,5.2121133,193.25,193.21,0.0383324]
[1738916381459,5.1734,193.23,193.21,0.0383324]
[1738916388168,5.1731,193.24,193.21,0.0383324]
[1738916388358,0.0393133,193.25,193.21,0.0383324]
[1738916388661,5.1736,193.23,193.21,0.0383324]
[1738916388868,11.10860283,193.24,193.21,0.0383324]
[1738916389561,5.1736,193.22,193.21,0.0383324]
[1738916390265,16.28220283,193.22,193.21,0.0383324]
[1738916391366,5.1736,193.22,193.21,0.0383324]
[1738916391763,16.28220283,193.22,193.21,0.0383324]
[1738916393365,5.1736,193.22,193.21,0.0383324]
[1738916393670,0.0393133,193.25,193.21,0.0383324]
[1738916394371,5.2122133,193.25,193.21,0.0383324]
[1738916394561,0.0393133,193.25,193.21,0.0383324]
[1738916395869,5.1733,193.24,193.21,0.0383324]
[1738916396266,0.0393133,193.25,193.21,0.0383324]
[1738916396667,11.10860283,193.24,193.21,0.0383324]
[1738916397175,0.0393133,193.25,193.21,0.0383324]
[1738916397472,5.1734,193.23,193.21,0.0383324]
[1738916397670,11.10860283,193.24,193.21,0.0383324]
[1738916397975,11.10860283,193.22,193.21,0.0383324]
[1738916398363,16.28220283,193.22,193.21,0.0383324]
[1738916400176,5.1736,193.22,193.21,0.0383324]
[1738916400970,11.10860283,193.22,193.15,11.10860283]
[1738916401173,11.10860283,193.22,193.13,11.10860283]
[1738916401369,11.10860283,193.22,193.15,11.10860283]
[1738916401969,5.174,193.21,193.15,11.10860283]
[1738916402170,0.03881213,193.2,193.17,0.03813281]
[1738916404176,11.14741496,193.2,193.17,0.03813281]
[1738916404373,11.10860283,193.18,193.17,0.03813281]
[1738916404778,5.1747,193.18,193.17,0.03813281]
[1738916405375,16.32181496,193.2,193.17,0.03813281]
[1738916405568,0.03881213,193.2,193.17,0.03813281]
[1738916406077,5.21321213,193.2,193.17,0.03813281]
[1738916406774,5.1747,193.18,193.17,0.03813281]
[1738916409982,5.1745,193.19,193.17,0.03813281]
[1738916410176,11.14741496,193.2,193.17,0.03813281]
[1738916411779,16.32161496,193.2,193.17,0.03813281]
[1738916412480,0.03881213,193.2,193.17,0.03813281]
[1738916412982,0.03881213,193.2,193.17,11.14673564]
[1738916413178,0.03881213,193.2,193.19,11.10860283]
[1738916413573,21.48567848,193.24,193.19,11.10860283]
[1738916413783,21.48567848,193.24,193.23,11.10860283]
[1738916414175,57.32805517,193.25,193.23,11.10860283]
[1738916414176,21.48567848,193.26,193.23,11.10860283]
[1738916414772,21.51853487,193.26,193.23,0.03640837]
[1738916415679,11.10860283,193.24,193.23,0.03640837]
[1738916416079,5.1742,193.2,193.13,11.10860283]
[1738916416282,16.28280283,193.2,193.13,11.10860283]
[1738916417183,16.28280283,193.2,193.15,0.03368991]
[1738916417388,0.03718694,193.18,193.15,0.03368991]
[1738916418983,17.37197958,193.17,193.15,0.03368991]
[1738916419287,5.1752,193.16,193.15,0.03368991]
[1738916421183,17.37197958,193.17,193.15,0.03368991]
[1738916421388,0.03718694,193.18,193.15,0.03368991]
[1738916424692,5.1752,193.16,193.15,0.03368991]
[1738916425990,5.1752,193.16,192.98,171.0]
[1738916425991,5.1769,193.1,193.01,17.37197958]
[1738916426189,17.37197958,193.12,192.99,4.6618]
[1738916426391,17.37197958,193.12,192.99,9.8413]
[1738916426588,21.13197958,193.12,192.99,9.8413]
[1738916426892,5.1774,193.08,192.99,9.8413]
[1738916427193,0.03592623,193.07,193.04,0.03945539]
[1738916429195,0.03592623,193.07,193.04,5.21775539]
[1738916429587,0.03592623,193.07,193.04,0.03945539]
[1738916429992,0.03592623,193.07,193.05,5.1779]
[1738916430989,0.03592623,193.07,193.04,17.41143497]
[1738916430990,0.03592623,193.07,193.06,5.1779]
[1738916433100,3.76,193.17,193.04,17.41143497]
[1738916433399,3.76,193.17,193.04,17.37197958]
[1738916433701,5.176,193.14,193.04,22.55037958]
[1738916433898,3.76,193.17,193.04,22.55037958]
[1738916434297,5.177,193.1,193.09,0.03950804]
[1738916439308,3.0604,193.11,192.99,4.6618]
[1738916439512,17.37197958,193.07,192.99,4.6618]
[1738916439818,17.37197958,193.07,192.97,5.1803]
[1738916440008,5.1787,193.03,192.96,5.1806]
[1738916440515,0.0365356,193.01,192.98,0.03341767]
[1738916440703,5.1791,193.02,192.98,0.03341767]
[1738916440908,5.21753211,193.02,192.98,0.03341767]
[1738916442711,0.03843211,193.02,192.98,0.03341767]
[1738916443316,5.21743211,193.02,192.98,0.03341767]
[1738916450417,0.03843211,193.02,192.98,0.03341767]
[1738916450619,0.03843211,193.02,192.99,5.1797]
[1738916452121,0.03843211,193.02,193.0,5.1793]
[1738916452421,0.03843211,193.02,193.0,11.13167428]
[1738916452820,0.03843211,193.02,193.01,5.1792]
[1738916454815,11.13167428,193.13,193.0,11.13167428]
[1738916455020,32.61735276,193.15,193.08,11.13167428]
[1738916455418,5.1758,193.14,193.09,5.1769]
[1738916455623,32.61735276,193.15,193.08,11.13167428]
[1738916456023,0.03480295,193.13,193.1,0.03773683]
[1738916456323,0.03480295,193.13,193.1,5.21443683]
[1738916457920,0.03480295,193.13,193.12,5.1763]
[1738916458126,0.03480295,193.13,193.12,16.30797428]
[1738916458825,0.03480295,193.13,193.12,22.53974579]
[1738916459125,21.48567848,193.22,193.12,17.36344579]
[1738916459321,21.48567848,193.22,193.18,17.36344579]
[1738916459522,21.48567848,193.22,193.21,5.1739]
[1738916459823,6.67547848,193.22,193.21,22.53734579]
[1738916460120,13.73446234,193.25,193.24,5.1731]
[1738916460321,40.49105517,193.26,193.24,17.36344579]
[1738916460626,32.53695517,193.26,193.24,17.36344579]
[1738916460818,32.57127052,193.26,193.24,17.36344579]
[1738916461916,32.57127052,193.26,193.24,22.53634579]
[1738916462927,0.03431535,193.26,193.24,22.53634579]
[1738916463927,0.03431535,193.26,193.25,5.1728]
[1738916464325,17.36344579,193.39,193.24,17.36344579]
[1738916464525,1.5661,193.39,193.31,17.36344579]
[1738916464926,5.17,193.36,193.31,17.36344579]
[1738916465422,1.5661,193.39,193.31,17.36344579]
[1738916465627,5.1705,193.34,193.32,0.03819872]
[1738916465828,0.03265852,193.35,193.32,0.03819872]
[1738916466322,0.03265852,193.35,193.25,17.36344579]
[1738916466627,0.03265852,193.35,193.26,5.1725]
[1738916466925,0.03265852,193.35,193.25,17.36344579]
[1738916467130,0.03265852,193.35,193.3,5.1714]
[1738916467427,0.03265852,193.35,193.31,0.03742969]
[1738916470125,1.54315852,193.35,193.31,0.03742969]
[1738916470528,1.54315852,193.35,193.25,17.36344579]
[1738916470732,1.6427,193.34,193.22,17.36344579]
[1738916471230,5.1714,193.31,193.24,5.1729]
[1738916471430,17.36344579,193.33,193.24,5.1729]
[1738916471630,17.36344579,193.33,193.22,17.36344579]
[1738916471830,0.03772686,193.3,193.27,0.03521821]
[1738916473738,0.03772686,193.3,193.19,17.36344579]
[1738916474031,17.40117265,193.3,193.19,17.36344579]
[1738916474439,17.40117265,193.3,193.16,17.36344579]
[1738916474828,17.36344579,193.3,193.21,0.03931442]
[1738916475132,0.03429889,193.25,193.21,0.03931442]
[1738916475524,1.5081,193.26,193.16,17.36344579]
[1738916475726,0.03321182,193.25,193.21,0.03731406]
[1738916476329,5.1736,193.22,193.21,0.03731406]
[1738916476529,0.03321182,193.25,193.13,17.36344579]
[1738916476733,3.1566,193.26,193.13,17.36344579]
[1738916476933,3.1566,193.26,193.14,5.1757]
[1738916477335,5.1742,193.2,193.14,5.1757]
[1738916477737,0.03680088,193.19,193.15,0.03378504]
[1738916477930,5.1747,193.18,193.15,0.03378504]
[1738916479337,5.1751,193.17,193.15,0.03378504]
[1738916479536,0.03680088,193.19,193.15,0.03378504]
[1738916480427,0.03680088,193.19,193.07,210.36344579]
[1738916480428,17.36344579,193.18,193.07,210.36344579]
[1738916480626,1.5718,193.17,193.04,17.36344579]
[1738916481735,0.03856734,193.12,193.09,0.03305832]
[1738916482333,5.21506734,193.12,193.09,0.03305832]
[1738916482533,0.03856734,193.12,193.09,0.03305832]
[1738916483136,5.1768,193.11,193.09,0.03305832]
[1738916483438,0.03856734,193.12,193.09,0.03305832]
[1738916485436,0.03856734,193.12,193.1,5.1768]
[1738916486339,0.03856734,193.12,193.09,0.03305832]
[1738916487337,5.21506734,193.12,193.09,0.03305832]
[1738916489445,5.1767,193.11,193.09,0.03305832]
[1738916491336,0.03856734,193.12,193.09,0.03305832]
[1738916492242,0.03856734,193.12,193.09,5.20995832]
[1738916492442,0.03856734,193.12,193.09,0.03305832]
[1738916492643,0.03856734,193.12,193.1,17.36344579]
[1738916492844,0.03856734,193.12,193.11,5.1766]
[1738916495343,0.03856734,193.12,193.1,17.36344579]
[1738916495544,0.03856734,193.12,193.09,0.03305832]
[1738916496042,5.1768,193.1,193.09,0.03305832]
[1738916497053,5.1779,193.07,193.01,210.36344579]
[1738916497243,5.1779,193.07,193.01,17.36344579]
[1738916498150,17.36344579,193.12,193.01,5.1792]
[1738916498344,0.03702517,193.06,193.02,0.03921431]
[1738916499048,5.1784,193.05,193.02,0.03921431]
[1738916499245,0.03702517,193.06,193.02,0.03921431]
[1738916500856,0.03702517,193.06,193.02,5.21811431]
[1738916502456,0.03702517,193.06,193.02,0.03921431]
[1738916503362,0.03702517,193.06,193.02,5.21811431]
[1738916504757,0.03702517,193.06,193.04,5.1783]
[1738916507866,0.03702517,193.06,193.02,0.03921431]
[1738916508068,0.03702517,193.06,193.05,5.1782]
[1738916508567,0.03702517,193.06,193.02,0.03921431]
[1738916509269,5.1786,193.04,193.02,0.03921431]
[1738916509771,5.1787,193.03,193.02,0.03921431]
[1738916509971,1.5887,193.05,192.95,193.0]
[1738916510271,3.1758,193.05,192.92,17.36344579]
[1738916511369,0.03486878,193.0,192.97,0.03602843]